fUSD/lending_fUSD_20240222
["ID","MTS","AMOUNT","RATE_DAILY","PERIOD"]
[314846804,1708589435033,-500.0,0.00035616,2]
[314846805,1708589435043,-500.0,0.00035616,2]
[314846806,1708589435053,-500.0,0.00035616,2]
[314846807,1708589435062,-500.0,0.00035616,2]
[314846808,1708589435072,-500.0,0.00035616,2]
[314846809,1708589435082,-476.43629189,0.00035616,2]
[314846811,1708589435091,-500.0,0.00035616,2]
[314846812,1708589435100,-500.0,0.00035616,2]
[314846814,1708589435109,-500.0,0.00035616,2]
[314846816,1708589435118,-500.0,0.00035616,2]
[314846818,1708589435127,-500.0,0.00035616,2]
[314846820,1708589435137,-266.51830068,0.00035616,2]
[314846822,1708589435147,-500.0,0.00035616,2]
[314846824,1708589435156,-500.0,0.00035616,2]
[314846826,1708589435166,-500.0,0.00035616,2]
[314846828,1708589435175,-500.0,0.00035616,2]
[314846830,1708589435184,-503.95401143,0.00035616,2]
[314846831,1708589435194,-500.0,0.00035616,2]
[314846832,1708589435203,-500.0,0.00035616,2]
[314846833,1708589435212,-500.0,0.00035616,2]
[314846834,1708589435221,-500.0,0.00035616,2]
[314846835,1708589435233,-500.0,0.00035616,2]
[314846836,1708589435242,-500.0,0.00035616,2]
[314846837,1708589435251,-500.0,0.00035616,2]
[314846838,1708589435260,-500.0,0.00035616,2]
[314846839,1708589435269,-500.0,0.00035616,2]
[314846840,1708589435278,-500.0,0.00035616,2]
[314846841,1708589435288,-500.0,0.00035616,2]
[314846842,1708589435297,-505.68868853,0.00035616,2]
[314846843,1708589435306,-500.0,0.00035616,2]
[314846844,1708589435316,-500.0,0.00035616,2]
[314846845,1708589435325,-569.78,0.00035616,2]
[314846846,1708589435334,-500.0,0.00035616,2]
[314846847,1708589435343,-500.0,0.00035616,2]
[314846848,1708589435353,-500.0,0.00035616,2]
[314846849,1708589435362,-566.29,0.00035616,2]
[314846850,1708589435371,-500.0,0.00035616,2]
[314846851,1708589435381,-500.0,0.00035616,2]
[314846852,1708589435391,-500.0,0.00035616,2]
[314846853,1708589435400,-500.0,0.00035616,2]
[314846854,1708589435410,-500.0,0.00035616,2]
[314846855,1708589435420,-500.0,0.00035616,2]
[314846856,1708589435430,-500.0,0.00035616,2]
[314846857,1708589435440,-511.86180365,0.00035616,2]
[314846858,1708589435449,-500.0,0.00035616,2]
[314846859,1708589435458,-500.0,0.00035616,2]
[314846860,1708589435468,-512.64058173,0.00035616,2]
[314846861,1708589435477,-500.0,0.00035616,2]
[314846862,1708589435489,-500.0,0.00035616,2]
[314846863,1708589435499,-500.0,0.00035616,2]
[314846864,1708589435508,-506.94899818,0.00035616,2]
[314846865,1708589435518,-500.0,0.00035616,2]
[314846866,1708589435527,-500.0,0.00035616,2]
[314846867,1708589435536,-500.0,0.00035616,2]
[314846868,1708589435545,-500.0,0.00035616,2]
[314846869,1708589435554,-194.09554926,0.00035616,2]
[314846870,1708589435611,-1527.87445074,0.00035616,2]
[314846871,1708589435620,-500.0,0.00035616,2]
[314846872,1708589435630,-500.0,0.00035616,2]
[314846873,1708589435640,-500.0,0.00035616,2]
[314846874,1708589435649,-500.0,0.00035616,2]
[314846875,1708589435659,-500.0,0.00035616,2]
[314846876,1708589435669,-500.0,0.00035616,2]
[314846877,1708589435679,-500.0,0.00035616,2]
[314846878,1708589435690,-500.0,0.00035616,2]
[314846879,1708589435700,-500.0,0.00035616,2]
[314846880,1708589435711,-500.0,0.00035616,2]
[314846881,1708589435721,-500.0,0.00035616,2]
[314846882,1708589435731,-567.5,0.00035616,2]
[314846883,1708589435742,-500.0,0.00035616,2]
[314846884,1708589435752,-500.0,0.00035616,2]
[314846885,1708589435761,-500.0,0.00035616,2]
[314846886,1708589435771,-500.0,0.00035616,2]
[314846887,1708589435780,-500.0,0.00035616,2]
[314846888,1708589435790,-500.0,0.00035616,2]
[314846889,1708589435800,-500.0,0.00035616,2]
[314846890,1708589435809,-500.0,0.00035616,2]
[314846891,1708589435819,-500.0,0.00035616,2]
[314846892,1708589435829,-19.91208642,0.00035616,2]
[314846893,1708589435843,-492.21325743,0.00035616,2]
[314846894,1708589435855,-31.32730116,0.00035616,2]
[314846895,1708589435864,-500.0,0.00035616,2]
[314846896,1708589435874,-500.0,0.00035616,2]
[314846897,1708589435884,-510.08043423,0.00035616,2]
[314846898,1708589435894,-500.0,0.00035616,2]
[314846899,1708589435903,-1365.83,0.00035616,2]
[314846900,1708589435913,-500.0,0.00035616,2]
[314846901,1708589435922,-844.91,0.00035616,2]
[314846902,1708589435932,-500.0,0.00035616,2]
[314846903,1708589435941,-500.0,0.00035616,2]
[314846904,1708589435950,-500.0,0.00035616,2]
[314846905,1708589435960,-500.0,0.00035616,2]
[314846906,1708589435969,-500.0,0.00035616,2]
[314846907,1708589435984,-493.85920233,0.00035616,2]
[314846908,1708589435994,-500.0,0.00035616,2]
[314846909,1708589436004,-500.0,0.00035616,2]
[314846910,1708589436014,-502.99900561,0.00035616,2]
[314846911,1708589436026,-751.9,0.00035616,2]
[314846912,1708589436035,-500.0,0.00035616,2]
[314846913,1708589436045,-515.88834121,0.00035616,2]
[314846914,1708589436054,-920.62,0.00035616,2]
[314846915,1708589436065,-500.0,0.00035616,2]
[314846916,1708589436075,-500.0,0.00035616,2]
[314846917,1708589436085,-500.0,0.00035616,2]
[314846918,1708589436095,-500.0,0.00035616,2]
[314846919,1708589436106,-946.85,0.00035616,2]
[314846920,1708589436116,-439.03465363,0.00035616,2]
[314846921,1708589436127,-540.4457428,0.00035616,2]
[314846922,1708589436138,-500.0,0.00035616,2]
[314846923,1708589436148,-506.93701557,0.00035616,2]
[314846924,1708589436158,-500.0,0.00035616,2]
[314846925,1708589436169,-500.0,0.00035616,2]
[314846926,1708589436179,-500.0,0.00035616,2]
[314846927,1708589436190,-500.0,0.00035616,2]
[314846928,1708589436200,-500.0,0.00035616,2]
[314846929,1708589436210,-500.0,0.00035616,2]
[314846930,1708589436219,-500.0,0.00035616,2]
[314846931,1708589436229,-503.40836635,0.00035616,2]
[314846932,1708589436242,-500.0,0.00035616,2]
[314846933,1708589436251,-500.0,0.00035616,2]
[314846934,1708589436260,-500.0,0.00035616,2]
[314846935,1708589436269,-500.0,0.00035616,2]
[314846936,1708589436278,-500.0,0.00035616,2]
[314846937,1708589436287,-521.91,0.00035616,2]
[314846938,1708589436297,-871.26,0.00035616,2]
[314846939,1708589436306,-500.0,0.00035616,2]
[314846940,1708589436315,-699.28,0.00035616,2]
[314846941,1708589436325,-500.0,0.00035616,2]
[314846942,1708589436335,-500.0,0.00035616,2]
[314846943,1708589436345,-553.26,0.00035616,2]
[314846944,1708589436355,-880.54,0.00035616,2]
[314846945,1708589436364,-500.0,0.00035616,2]
[314846946,1708589436374,-500.0,0.00035616,2]
[314846947,1708589436384,-500.0,0.00035616,2]
[314846948,1708589436395,-919.31,0.00035616,2]
[314846949,1708589436404,-500.0,0.00035616,2]
[314846950,1708589436414,-500.0,0.00035616,2]
[314846951,1708589436423,-500.0,0.00035616,2]
[314846952,1708589436433,-500.0,0.00035616,2]
[314846953,1708589436441,-552.54,0.00035616,2]
[314846954,1708589436451,-501.50500683,0.00035616,2]
[314846955,1708589436461,-500.0,0.00035616,2]
[314846956,1708589436470,-500.0,0.00035616,2]
[314846957,1708589436481,-604.65,0.00035616,2]
[314846958,1708589436494,-500.0,0.00035616,2]
[314846959,1708589436503,-652.8,0.00035616,2]
[314846960,1708589436512,-500.0,0.00035616,2]
[314846961,1708589436521,-500.0,0.00035616,2]
[314846962,1708589436531,-500.0,0.00035616,2]
[314846963,1708589436541,-500.0,0.00035616,2]
[314846964,1708589436550,-500.0,0.00035616,2]
[314846965,1708589436560,-616.5714499,0.00035616,2]
[314846966,1708589436569,-1626.35,0.00035616,2]
[314846967,1708589436578,-500.0,0.00035616,2]
[314846968,1708589436587,-597.7,0.00035616,2]
[314846969,1708589436597,-500.0,0.00035616,2]
[314846970,1708589436607,-507.25670299,0.00035616,2]
[314846971,1708589436617,-500.0,0.00035616,2]
[314846972,1708589436626,-500.0,0.00035616,2]
[314846973,1708589436636,-500.0,0.00035616,2]
[314846974,1708589436646,-500.0,0.00035616,2]
[314846975,1708589436655,-512.6687616,0.00035616,2]
[314846976,1708589436664,-500.0,0.00035616,2]
[314846977,1708589436674,-893.13,0.00035616,2]
[314846978,1708589436684,-500.0,0.00035616,2]
[314846979,1708589436693,-532.61,0.00035616,2]
[314846980,1708589436702,-853.66,0.00035616,2]
[314846981,1708589436711,-561.25,0.00035616,2]
[314846982,1708589436721,-500.0,0.00035616,2]
[314846983,1708589436730,-500.0,0.00035616,2]
[314846984,1708589436742,-500.0,0.00035616,2]
[314846985,1708589436751,-505.16,0.00035616,2]
[314846986,1708589436762,-1203.33,0.00035616,2]
[314846987,1708589436772,-554.17095569,0.00035616,2]
[314846988,1708589436781,-1187.92,0.00035616,2]
[314846989,1708589436791,-784.29,0.00035616,2]
[314846990,1708589436800,-436.68659243,0.00035616,2]
[314846991,1708589436809,-500.0,0.00035616,2]
[314846992,1708589436819,-500.0,0.00035616,2]
[314846993,1708589436828,-500.0,0.00035616,2]
[314846994,1708589436837,-500.0,0.00035616,2]
[314846995,1708589436846,-500.0,0.00035616,2]
[314846996,1708589436855,-505.02430737,0.00035616,2]
[314846997,1708589436864,-500.0,0.00035616,2]
[314846998,1708589436873,-521.16182488,0.00035616,2]
[314846999,1708589436884,-500.0,0.00035616,2]
[314847000,1708589436894,-924.21,0.00035616,2]
[314847001,1708589436904,-500.0,0.00035616,2]
[314847002,1708589436914,-500.0,0.00035616,2]
[314847003,1708589436924,-1075.7,0.00035616,2]
[314847004,1708589436933,-514.0,0.00035616,2]
[314847005,1708589436944,-500.0,0.00035616,2]
[314847006,1708589436954,-500.0,0.00035616,2]
[314847007,1708589436965,-500.0,0.00035616,2]
[314847008,1708589436976,-500.0,0.00035616,2]
[314847009,1708589436987,-500.0,0.00035616,2]
[314847010,1708589436999,-500.0,0.00035616,2]
[314847011,1708589437009,-500.0,0.00035616,2]
[314847012,1708589437018,-806.51,0.00035616,2]
[314847013,1708589437028,-500.0,0.00035616,2]
[314847014,1708589437038,-173.58568464,0.00035616,2]
[314847015,1708589437048,-500.0,0.00035616,2]
[314847016,1708589437058,-1435.18,0.00035616,2]
[314847017,1708589437068,-500.0,0.00035616,2]
[314847018,1708589437078,-646.26,0.00035616,2]
[314847019,1708589437088,-508.09,0.00035616,2]
[314847020,1708589437220,-500.0,0.00035616,2]
[314847021,1708589437244,-500.0,0.00035616,2]
[314847022,1708589437254,-500.0,0.00035616,2]
[314847023,1708589437263,-644.99,0.00035616,2]
[314847024,1708589437273,-500.0,0.00035616,2]
[314847025,1708589437282,-500.0,0.00035616,2]
[314847026,1708589437292,-785.55,0.00035616,2]
[314847027,1708589437301,-500.0,0.00035616,2]
[314847028,1708589437311,-500.0,0.00035616,2]
[314847029,1708589437320,-506.64628028,0.00035616,2]
[314847030,1708589437330,-1000.0,0.00035616,7]
[314847031,1708589437339,-647.22,0.00035616,2]
[314847032,1708589437347,-500.0,0.00035616,2]
[314847033,1708589437357,-736.56,0.00035616,2]
[314847034,1708589437366,-968.49,0.00035616,2]
[314847035,1708589437375,-500.0,0.00035616,2]
[314847036,1708589437386,-500.0,0.00035616,2]
[314847037,1708589437395,-507.3728952,0.00035616,2]
[314847038,1708589437405,-500.0,0.00035616,2]
[314847039,1708589437415,-500.0,0.00035616,2]
[314847040,1708589437424,-500.0,0.00035616,2]
[314847041,1708589437433,-640.09,0.00035616,2]
[314847042,1708589437443,-1067.95,0.00035616,2]
[314847043,1708589437452,-799.71,0.00035616,2]
[314847044,1708589437461,-532.13,0.00035616,2]
[314847045,1708589437470,-806.18,0.00035616,2]
[314847046,1708589437480,-500.0,0.00035616,2]
[314847047,1708589437491,-500.0,0.00035616,2]
[314847048,1708589437501,-500.0,0.00035616,2]
[314847049,1708589437511,-500.0,0.00035616,2]
[314847050,1708589437520,-500.0,0.00035616,2]
[314847051,1708589437531,-500.0,0.00035616,2]
[314847052,1708589437541,-155.13587454,0.00035616,2]
[314847053,1708589437550,-503.82075192,0.00035616,2]
[314847054,1708589437560,-500.0,0.00035616,2]
[314847055,1708589437569,-543.14,0.00035616,2]
[314847056,1708589437579,-500.0,0.00035616,2]
[314847057,1708589437588,-500.0,0.00035616,2]
[314847058,1708589437597,-500.0,0.00035616,2]
[314847059,1708589437606,-500.0,0.00035616,2]
[314847060,1708589437616,-543.28,0.00035616,2]
[314847061,1708589437626,-1030.1,0.00035616,2]
[314847062,1708589437635,-818.88,0.00035616,2]
[314847063,1708589437645,-812.09,0.00035616,2]
[314847064,1708589437655,-500.0,0.00035616,2]
[314847065,1708589437664,-1270.31,0.00035616,2]
[314847066,1708589437673,-500.0,0.00035616,2]
[314847067,1708589437683,-953.16,0.00035616,2]
[314847068,1708589437692,-500.0,0.00035616,2]
[314847069,1708589437702,-500.0,0.00035616,2]
[314847070,1708589437711,-500.0,0.00035616,2]
[314847071,1708589437721,-500.0,0.00035616,2]
[314847072,1708589437730,-500.0,0.00035616,2]
[314847073,1708589437741,-563.94,0.00035616,2]
[314847074,1708589437750,-500.0,0.00035616,2]
[314847075,1708589437759,-500.0,0.00035616,2]
[314847076,1708589437769,-500.0,0.00035616,2]
[314847077,1708589437778,-509.14262075,0.00035616,2]
[314847078,1708589437789,-248.89062842,0.00035616,2]
[314847079,1708589437798,-500.0,0.00035616,2]
[314847080,1708589437808,-503.914932,0.00035616,2]
[314847081,1708589437817,-721.29,0.00035616,2]
[314847082,1708589437827,-500.0,0.00035616,2]
[314847083,1708589437836,-500.0,0.00035616,2]
[314847084,1708589437847,-500.0,0.00035616,2]
[314847085,1708589437856,-500.0,0.00035616,2]
[314847086,1708589437866,-500.0,0.00035616,2]
[314847087,1708589437875,-500.0,0.00035616,2]
[314847088,1708589437885,-500.0,0.00035616,2]
[314847089,1708589437895,-500.0,0.00035616,2]
[314847090,1708589437905,-500.0,0.00035616,2]
[314847091,1708589437915,-500.0,0.00035616,2]
[314847092,1708589437925,-500.0,0.00035616,2]
[314847093,1708589437935,-655.07,0.00035616,2]
[314847094,1708589437944,-500.0,0.00035616,2]
[314847095,1708589437954,-500.0,0.00035616,2]
[314847096,1708589437969,-500.0,0.00035616,2]
[314847097,1708589437985,-500.0,0.00035616,2]
[314847099,1708589437996,-500.0,0.00035616,2]
[314847101,1708589438006,-500.0,0.00035616,2]
[314847102,1708589438016,-500.0,0.00035616,2]
[314847103,1708589438027,-1235.37,0.00035616,2]
[314847104,1708589438037,-500.0,0.00035616,2]
[314847105,1708589438047,-500.0,0.00035616,2]
[314847106,1708589438058,-500.0,0.00035616,2]
[314847107,1708589438068,-887.97,0.00035616,2]
[314847108,1708589438078,-500.0,0.00035616,2]
[314847109,1708589438087,-500.0,0.00035616,2]
[314847110,1708589438096,-509.47241412,0.00035616,2]
[314847111,1708589438106,-500.0,0.00035616,2]
[314847112,1708589438116,-500.0,0.00035616,2]
[314847113,1708589438127,-365.49263762,0.00035616,2]
[314847114,1708589438136,-500.0,0.00035616,2]
[314847115,1708589438145,-500.0,0.00035616,2]
[314847116,1708589438156,-500.0,0.00035616,2]
[314847117,1708589438166,-500.0,0.00035616,2]
[314847118,1708589438175,-1832.22,0.00035616,2]
[314847119,1708589438185,-735.86,0.00035616,2]
[314847120,1708589438194,-1022.72,0.00035616,2]
[314847121,1708589438203,-500.0,0.00035616,2]
[314847122,1708589438213,-823.61,0.00035616,2]
[314847123,1708589438222,-500.0,0.00035616,2]
[314847124,1708589438232,-500.0,0.00035616,2]
[314847125,1708589438243,-500.0,0.00035616,2]
[314847126,1708589438252,-500.0,0.00035616,2]
[314847127,1708589438262,-572.53,0.00035616,2]
[314847128,1708589438271,-544.07,0.00035616,2]
[314847129,1708589438280,-500.0,0.00035616,2]
[314847130,1708589438289,-500.0,0.00035616,2]
[314847131,1708589438298,-500.0,0.00035616,2]
[314847132,1708589438307,-500.0,0.00035616,2]
[314847133,1708589438317,-500.0,0.00035616,2]
[314847134,1708589438326,-506.90188665,0.00035616,2]
[314847135,1708589438335,-594.08,0.00035616,2]
[314847136,1708589438344,-503.94720532,0.00035616,2]
[314847137,1708589438353,-500.0,0.00035616,2]
[314847138,1708589438363,-515.76257013,0.00035616,2]
[314847139,1708589438372,-500.0,0.00035616,2]
[314847140,1708589438382,-500.0,0.00035616,2]
[314847141,1708589438391,-500.0,0.00035616,2]
[314847142,1708589438401,-500.0,0.00035616,2]
[314847143,1708589438410,-500.0,0.00035616,2]
[314847144,1708589438419,-500.0,0.00035616,2]
[314847145,1708589438429,-500.0,0.00035616,2]
[314847146,1708589438438,-769.45,0.00035616,2]
[314847147,1708589438448,-550.61466136,0.00035616,2]
[314847148,1708589438457,-500.0,0.00035616,2]
[314847149,1708589438466,-594.04,0.00035616,2]
[314847150,1708589438476,-500.0,0.00035616,2]
[314847151,1708589438486,-500.0,0.00035616,2]
[314847152,1708589438496,-494.122632,0.00035616,2]
[314847153,1708589438505,-1043.77,0.00035616,2]
[314847154,1708589438516,-652.24,0.00035616,2]
[314847155,1708589438527,-500.0,0.00035616,2]
[314847156,1708589438536,-533.98,0.00035616,2]
[314847157,1708589438545,-724.57,0.00035616,2]
[314847158,1708589438555,-500.0,0.00035616,2]
[314847159,1708589438565,-500.0,0.00035616,2]
[314847161,1708589438575,-500.0,0.00035616,2]
[314847163,1708589438584,-500.0,0.00035616,2]
[314847165,1708589438593,-787.18,0.00035616,2]
[314847166,1708589438603,-500.0,0.00035616,2]
[314847168,1708589438612,-551.73,0.00035616,2]
[314847170,1708589438621,-500.0,0.00035616,2]
[314847172,1708589438630,-500.0,0.00035616,2]
[314847174,1708589438641,-506.14159084,0.00035616,2]
[314847176,1708589438650,-505.83546786,0.00035616,2]
[314847177,1708589438660,-730.74,0.00035616,2]
[314847178,1708589438669,-500.0,0.00035616,2]
[314847179,1708589438679,-500.0,0.00035616,2]
[314847180,1708589438689,-500.0,0.00035616,2]
[314847181,1708589438699,-510.58157656,0.00035616,2]
[314847182,1708589438708,-565.24,0.00035616,2]
[314847183,1708589438718,-551.17,0.00035616,2]
[314847184,1708589438728,-507.60487577,0.00035616,2]
[314847185,1708589438738,-500.0,0.00035616,2]
[314847186,1708589438748,-500.0,0.00035616,2]
[314847187,1708589438758,-995.13,0.00035616,2]
[314847188,1708589438768,-500.0,0.00035616,2]
[314847189,1708589438779,-500.0,0.00035616,2]
[314847190,1708589438788,-1000.0,0.00035616,7]
[314847191,1708589438798,-500.0,0.00035616,2]
[314847192,1708589438808,-359.19999363,0.00035616,2]
[314847193,1708589438818,-500.0,0.00035616,2]
[314847194,1708589438827,-500.0,0.00035616,2]
[314847195,1708589438837,-500.0,0.00035616,2]
[314847196,1708589438847,-618.85,0.00035616,2]
[314847197,1708589438856,-639.84,0.00035616,2]
[314847198,1708589438866,-500.0,0.00035616,2]
[314847199,1708589438875,-736.91,0.00035616,2]
[314847200,1708589438885,-500.0,0.00035616,2]
[314847201,1708589438895,-500.0,0.00035616,2]
[314847202,1708589438904,-500.0,0.00035616,2]
[314847203,1708589438914,-519.91,0.00035616,2]
[314847204,1708589438924,-500.0,0.00035616,2]
[314847205,1708589438934,-500.0,0.00035616,2]
[314847206,1708589438943,-500.0,0.00035616,2]
[314847207,1708589438953,-500.0,0.00035616,2]
[314847208,1708589438962,-500.0,0.00035616,2]
[314847209,1708589438973,-500.0,0.00035616,2]
[314847210,1708589438983,-500.0,0.00035616,2]
[314847211,1708589438994,-500.0,0.00035616,2]
[314847212,1708589439004,-500.0,0.00035616,2]
[314847213,1708589439014,-500.0,0.00035616,2]
[314847214,1708589439024,-500.0,0.00035616,2]
[314847215,1708589439034,-505.10348397,0.00035616,2]
[314847216,1708589439044,-854.97,0.00035616,2]
[314847217,1708589439053,-1420.27,0.00035616,2]
[314847218,1708589439063,-591.47,0.00035616,2]
[314847219,1708589439072,-500.0,0.00035616,2]
[314847220,1708589439082,-500.0,0.00035616,2]
[314847221,1708589439091,-500.0,0.00035616,2]
[314847222,1708589439101,-602.31,0.00035616,2]
[314847223,1708589439110,-500.0,0.00035616,2]
[314847224,1708589439119,-500.0,0.00035616,2]
[314847225,1708589439128,-904.35,0.00035616,2]
[314847226,1708589439137,-500.0,0.00035616,2]
[314847227,1708589439146,-570.04215852,0.00035616,2]
[314847228,1708589439156,-500.0,0.00035616,2]
[314847229,1708589439165,-500.0,0.00035616,2]
[314847230,1708589439174,-350.44183108,0.00035616,2]
[314847231,1708589439184,-500.0,0.00035616,2]
[314847232,1708589439192,-671.7,0.00035616,2]
[314847233,1708589439201,-263.782827,0.00035616,2]
[314847234,1708589439210,-775.35,0.00035616,2]
[314847235,1708589439219,-500.0,0.00035616,2]
[314847236,1708589439228,-500.0,0.00035616,2]
[314847237,1708589439239,-617.53602258,0.00035616,2]
[314847238,1708589439248,-500.0,0.00035616,2]
[314847239,1708589439257,-500.0,0.00035616,2]
[314847240,1708589439266,-500.0,0.00035616,2]
[314847241,1708589439275,-500.0,0.00035616,2]
[314847242,1708589439284,-500.0,0.00035616,2]
[314847243,1708589439294,-507.84423372,0.00035616,2]
[314847244,1708589439303,-519.48508656,0.00035616,2]
[314847245,1708589439313,-500.0,0.00035616,2]
[314847246,1708589439322,-500.0,0.00035616,2]
[314847247,1708589439331,-500.0,0.00035616,2]
[314847248,1708589439340,-500.0,0.00035616,2]
[314847249,1708589439349,-500.0,0.00035616,2]
[314847250,1708589439359,-500.0,0.00035616,2]
[314847251,1708589439368,-505.02081246,0.00035616,2]
[314847252,1708589439377,-503.27344842,0.00035616,2]
[314847253,1708589439387,-574.99,0.00035616,2]
[314847254,1708589439397,-500.0,0.00035616,2]
[314847255,1708589439407,-834.59,0.00035616,2]
[314847256,1708589439416,-500.0,0.00035616,2]
[314847257,1708589439426,-552.01,0.00035616,2]
[314847258,1708589439436,-1000.0,0.00035616,7]
[314847259,1708589439446,-500.0,0.00035616,2]
[314847260,1708589439456,-500.0,0.00035616,2]
[314847261,1708589439465,-500.0,0.00035616,2]
[314847262,1708589439474,-935.1,0.00035616,2]
[314847263,1708589439483,-716.17,0.00035616,2]
[314847264,1708589439811,-500.0,0.00035616,2]
[314847265,1708589439821,-500.0,0.00035616,2]
[314847266,1708589439831,-500.0,0.00035616,2]
[314847267,1708589439840,-586.43,0.00035616,2]
[314847268,1708589439849,-500.0,0.00035616,2]
[314847269,1708589439859,-500.0,0.00035616,2]
[314847270,1708589439868,-500.0,0.00035616,2]
[314847271,1708589439878,-582.79,0.00035616,2]
[314847272,1708589439888,-934.52,0.00035616,2]
[314847273,1708589439897,-500.0,0.00035616,2]
[314847274,1708589439906,-500.99,0.00035616,2]
[314847275,1708589439916,-500.0,0.00035616,2]
[314847276,1708589439925,-500.0,0.00035616,2]
[314847277,1708589439935,-503.10859555,0.00035616,2]
[314847278,1708589439944,-500.0,0.00035616,2]
[314847279,1708589439954,-500.0,0.00035616,2]
[314847280,1708589439963,-186.35518193,0.00035616,2]
[314847281,1708589440615,-313.64481807,0.00035616,2]
[314847282,1708589440625,-500.0,0.00035616,2]
[314847283,1708589440635,-500.0,0.00035616,2]
[314847284,1708589440644,-500.0,0.00035616,2]
[314847285,1708589440654,-500.0,0.00035616,2]
[314847286,1708589440663,-621.22,0.00035616,2]
[314847287,1708589440673,-500.0,0.00035616,2]
[314847288,1708589440683,-781.67,0.00035616,2]
[314847289,1708589440692,-1000.0,0.00035616,7]
[314847290,1708589440701,-500.0,0.00035616,2]
[314847291,1708589440711,-500.0,0.00035616,2]
[314847292,1708589440721,-232.61784085,0.00035616,2]
[314847293,1708589440731,-500.0,0.00035616,2]
[314847294,1708589440742,-713.53,0.00035616,2]
[314847295,1708589440751,-682.36,0.00035616,2]
[314847296,1708589440760,-500.0,0.00035616,2]
[314847297,1708589440770,-500.0,0.00035616,2]
[314847298,1708589440779,-500.0,0.00035616,2]
[314847299,1708589440789,-500.0,0.00035616,2]
[314847300,1708589440798,-513.52228649,0.00035616,2]
[314847301,1708589440807,-2142.74,0.00035616,2]
[314847302,1708589440816,-500.0,0.00035616,2]
[314847303,1708589440826,-402.38450143,0.00035616,2]
[314847304,1708589440835,-500.0,0.00035616,2]
[314847305,1708589440845,-500.0,0.00035616,2]
[314847306,1708589440854,-1289.28,0.00035616,2]
[314847307,1708589440864,-500.0,0.00035616,2]
[314847308,1708589440874,-500.0,0.00035616,2]
[314847309,1708589440884,-500.0,0.00035616,2]
[314847310,1708589440894,-968.81,0.00035616,2]
[314847311,1708589440903,-500.0,0.00035616,2]
[314847312,1708589440913,-500.0,0.00035616,2]
[314847313,1708589440922,-279.59926436,0.00035616,2]
[314847314,1708589440936,-220.40073564,0.00035616,2]
[314847315,1708589440945,-50.8956037,0.00035616,2]
[314847316,1708589440957,-407.74375604,0.00035616,2]
[314847317,1708589440966,-500.0,0.00035616,2]
[314847318,1708589440977,-500.0,0.00035616,2]
[314847319,1708589440989,-500.0,0.00035616,2]
[314847320,1708589440998,-500.0,0.00035616,2]
[314847321,1708589441007,-520.86613259,0.00035616,2]
[314847322,1708589441018,-500.0,0.00035616,2]
[314847323,1708589441027,-500.0,0.00035616,2]